{"text_format":"1","workbook":"xlsx","n_sheets":7,"sheets":["PivotTable","Form","Page 2","Page 3","Instructions","Data","ESRI_MAPINFO_SHEET"],"not_rendered":{"charts":0,"images":4,"macros":1,"external_links":0,"defined_names":4,"comments":0,"pivot_tables":1},"unopened":[],"bounds":{"document_bytes":16777216,"sheet_cells":100000,"rows_first":2000,"rows_last":500,"rows_between":2000,"halvings":0,"cell_chars":16384,"cell_head_chars":4096},"cells_cut":0,"cells_raw":0,"read":"whole","date_system":"1900"}

{"sheet":"PivotTable","index":0,"n_rows":30,"n_cols":10,"rows_kept":30,"cut":false,"hidden":true,"merged":[[125,4,125,6],[126,4,126,6],[127,4,127,6],[122,4,122,6],[123,4,123,6],[124,4,124,6],[120,4,120,6],[121,4,121,6],[129,4,129,6],[130,4,130,6],[128,4,128,6],[131,4,131,6],[141,4,141,6],[132,4,132,6],[133,4,133,6],[134,4,134,6],[135,4,135,6],[136,4,136,6],[137,4,137,6],[138,4,138,6],[139,4,139,6],[140,4,140,6],[119,4,119,6],[92,4,92,6],[105,4,105,6],[106,4,106,6],[107,4,107,6],[108,4,108,6],[115,4,115,6],[103,4,103,6],[104,4,104,6],[102,4,102,6],[116,4,116,6],[117,4,117,6],[99,4,99,6],[118,4,118,6],[93,4,93,6],[94,4,94,6],[65,4,65,6],[69,4,69,6],[70,4,70,6],[79,4,79,6],[80,4,80,6],[109,4,109,6],[110,4,110,6],[83,4,83,6],[84,4,84,6],[85,4,85,6],[90,4,90,6],[82,4,82,6],[86,4,86,6],[40,4,40,6],[41,4,41,6],[42,4,42,6],[57,4,57,6],[58,4,58,6],[59,4,59,6],[60,4,60,6],[53,4,53,6],[54,4,54,6],[55,4,55,6],[56,4,56,6],[46,4,46,6],[47,4,47,6],[43,4,43,6],[44,4,44,6],[45,4,45,6],[61,4,61,6],[66,4,66,6],[62,4,62,6],[63,4,63,6],[151,4,151,6],[152,4,152,6],[147,4,147,6],[148,4,148,6],[149,4,149,6],[87,4,87,6],[88,4,88,6],[89,4,89,6],[67,4,67,6],[68,4,68,6],[91,4,91,6],[64,4,64,6],[71,4,71,6],[72,4,72,6],[73,4,73,6],[74,4,74,6],[75,4,75,6],[76,4,76,6],[77,4,77,6],[78,4,78,6],[30,4,30,6],[31,4,31,6],[32,4,32,6],[33,4,33,6],[34,4,34,6],[35,4,35,6],[37,4,37,6],[38,4,38,6],[39,4,39,6],[36,4,36,6],[153,4,153,6],[154,4,154,6],[48,4,48,6],[49,4,49,6],[50,4,50,6],[51,4,51,6],[52,4,52,6],[145,4,145,6],[146,4,146,6],[81,4,81,6],[112,4,112,6],[113,4,113,6],[114,4,114,6],[111,4,111,6],[95,4,95,6],[96,4,96,6],[97,4,97,6],[98,4,98,6],[100,4,100,6],[101,4,101,6],[142,4,142,6],[143,4,143,6],[144,4,144,6],[150,4,150,6]]}
["Sum of VOLUME (m3)"]
["COMMODITY","BLOCK","Total"]
["SW Lumber",123,50]
["(blank)","(blank)"]
[]
[]
[]
[]
[]
[]
[]
[]
[]
[]
[]
[]
[]
[]
[]
[]
[]
[]
[]
[]
[]
[]
[]
[]
[]
["DATE","SPECIES","BLOCK","COMMODITY","DESTINATION","Empty1","Empty2","SCALER","LOADSLIP","VOLUME (m3)"]

{"sheet":"Form","index":1,"n_rows":77,"n_cols":28,"rows_kept":77,"cut":false,"hidden":false,"merged":[[26,0,27,0],[18,0,18,1],[3,5,3,6],[26,1,27,1],[26,4,27,6],[6,0,7,0],[6,1,7,1],[26,3,27,3],[6,2,7,2],[26,2,27,2],[0,3,1,6],[28,4,28,6],[29,4,29,6],[30,4,30,6],[36,4,36,6],[31,4,31,6],[2,5,2,6],[39,4,39,6],[43,4,43,6],[40,4,40,6],[41,4,41,6],[76,8,76,9],[76,6,76,7],[76,3,76,5],[72,3,72,4],[72,6,72,7],[75,4,75,5],[70,7,71,9],[68,4,69,9],[67,7,67,8],[61,6,61,7],[42,4,42,6],[47,4,47,6],[38,4,38,6],[26,7,26,9],[32,4,32,6],[33,4,33,6],[34,4,34,6],[35,4,35,6],[6,9,7,9],[6,7,6,8],[6,5,6,6],[6,3,6,4],[37,4,37,6],[76,0,76,1],[75,1,75,2],[67,1,67,2],[45,4,45,6],[69,0,71,3],[70,4,71,6],[55,4,55,6],[56,4,56,6],[57,4,57,6],[58,4,58,6],[51,4,51,6],[52,4,52,6],[53,4,53,6],[54,4,54,6],[67,4,67,5],[63,0,63,1],[48,4,48,6],[49,4,49,6],[50,4,50,6],[44,4,44,6],[46,4,46,6]]}
[null,null,null,"Timber Return  2022-23",null,null,null,null,"FMU:"]
[null,null,null,null,null,null,null,null,"OP. PERMIT #:"]
[null,null,null,null,"FOR THE MONTH OF ",null,null,null,"TIMBER SALE #:"]
[null,null,null,null,"HELD IN THE NAME OF ",null,null,null,"QUOTA #:"]
[]
["SUMMARY OF DUES AND CHARGES"]
["COMMODITY / PRODUCT  or DESCRIPTION","BLOCK\nNUMBER","VOLUME   (m3)","TIMBER DUES ",null,"FIRE PROTECTION CHARGES",null,"FOREST RENEWAL CHARGES",null,"TOTAL AMOUNT"]
[null,null,null,"RATE","TOTAL DUES","RATE","TOTAL FPC","RATE","TOTAL FRC"]
[null,null,null,null,{"$f":"+(C9*D9)","v":0},null,{"$f":"+(C9*F9)","v":0},null,{"$f":"+(C9*H9)","v":0},{"$f":"+(E9+G9+I9)","v":0}]
[null,null,null,null,{"$f":"+(C10*D10)","v":0},null,{"$f":"+(C10*F10)","v":0},null,{"$f":"+(C10*H10)","v":0},{"$f":"+(E10+G10+I10)","v":0}]
[null,null,null,null,0,null,0,null,0,0]
[null,null,null,null,0,null,0,null,0,0]
[null,null,null,null,0,null,0,null,0,0]
[null,null,null,null,0,null,0,null,0,0]
[null,null,null,null,0,null,0,null,0,0]
[null,null,null,null,0,null,0,null,0,0]
[null,null,null,null,0,null,0,null,0,0]
[null,null,null,null,0,null,0,null,0,0]
["SUBTOTAL",null,{"$f":"SUM(C9:C18)","v":0},null,{"$f":"SUM(E9:E18)","v":0},null,{"$f":"SUM(G9:G18)","v":0},null,{"$f":"SUM(I9:I18)","v":0},{"$f":"G19+I19+E19","v":0},null,null,null,null,null,null,null,null,null,null,null,null,"Commodity List",null,"Dates ",null,"FRC","FPC"]
[null,null,null,null,"CODE 2.12",null,"CODE 2.22",null,"CODE 2.23",null,null,null,null,null,null,null,null,null,null,null,null,null,"SW Lumber",null,"2022-04-01",null,5.75,0.17]
[null,null,null,null,null,null,null,null,"SUBTOTAL OF DUES AND CHARGES",{"$f":"J19","v":0},null,null,null,null,null,null,null,null,null,null,null,null,"SW Lumber (Salvage)",null,"2022-05-01",null,4.3099999999999996,0.13]
[null,null,null,null,null,null," CODE 2.99 (G.S.T.#) BUSINESS NUMBER",null,"G.S.T.",{"$f":"IF(ISBLANK(H22),J21*0.05,0)","v":0},null,null,null,null,null,null,null,null,null,null,null,null,"SW Lumber (Tamarack)",null,"2022-06-01",null,2.88,0.09]
[null,null,null,null,null,null,null,null,"TOTAL PAYABLE",{"$f":"J21+J22","v":0},null,null,null,null,null,null,null,null,null,null,null,null,"HW Lumber",null,"2022-07-01",null,1.44,0.04]
[null,null,null,null,null,null,null,null,null,null,null,null,null,null,null,null,null,null,null,null,null,null,"HW Lumber (Salvage)",null,"2022-08-01",null,0.5,0]
[null,null,null,null,null,null,null,null,null,null,null,null,null,null,null,null,null,null,null,null,null,null,"Fuelwood (Green) - HW",null,"2022-09-01",null,0.38]
["SCALED TIMBER RECORDS",null,null,null,null,null,null,null,null,"(ALL RELATED STACKED WOOD TALLY SHEETS AND LOAD SLIPS MUST BE ATTACHED)",null,null,null,null,null,null,null,null,null,null,null,null,"Fuelwood (Green) - SW",null,"2022-10-01",null,0.25]
["DATE\n(yyyy-mm-dd)","SPECIES","BLOCK\nNUMBER","COMMODITY / PRODUCT","FINAL DESTINATION\n Mill Name, Yard, etc. - Locations as per approved Scaling Plan",null,null,"SCALE",null,null,null,null,null,null,null,null,null,null,null,null,null,null,"Fuelwood (Salvage)",null,"2022-11-01",null,0.13]
[null,null,null,null,null,null,null,"SCALER\n LIC. #","LOAD\n SLIP #","VOLUME\n (m3)",null,null,null,null,null,null,null,null,null,null,null,null,"Fuelwood (Tamarack)",null,"2022-12-01",null,0]
[null,null,null,null,null,null,null,null,null,null,null,null,null,null,null,null,null,null,null,null,null,null,"OSB/Board (Salvage)",null,"2023-01-01"]
[null,null,null,null,null,null,null,null,null,null,null,null,null,null,null,null,null,null,null,null,null,null,"OSB/Board -SW",null,"2023-02-01"]
[null,null,null,null,null,null,null,null,null,null,null,null,null,null,null,null,null,null,null,null,null,null,"OSB/Board -HW",null,"2023-03-01"]
[null,null,null,null,null,null,null,null,null,null,null,null,null,null,null,null,null,null,null,null,null,null,"OSB/Board (Tamarack)"]
[null,null,null,null,null,null,null,null,null,null,null,null,null,null,null,null,null,null,null,null,null,null,"Kraft (Roundwood)"]
[null,null,null,null,null,null,null,null,null,null,null,null,null,null,null,null,null,null,null,null,null,null,"Kraft (Chips)"]
[null,null,null,null,null,null,null,null,null,null,null,null,null,null,null,null,null,null,null,null,null,null,"Kraft (Salvage)"]
[null,null,null,null,null,null,null,null,null,null,null,null,null,null,null,null,null,null,null,null,null,null,"Kraft (Tamarack)"]
[null,null,null,null,null,null,null,null,null,null,null,null,null,null,null,null,null,null,null,null,null,null,"Kraft - HW"]
[null,null,null,null,null,null,null,null,null,null,null,null,null,null,null,null,null,null,null,null,null,null,"Bio-Product (Non-Merch)"]
[null,null,null,null,null,null,null,null,null,null,null,null,null,null,null,null,null,null,null,null,null,null,"Bio-Product (Merch) - SW "]
[null,null,null,null,null,null,null,null,null,null,null,null,null,null,null,null,null,null,null,null,null,null,"Bio-Product (Merch) - HW "]
[null,null,null,null,null,null,null,null,null,null,null,null,null,null,null,null,null,null,null,null,null,null,"Newsprint (Roundwood)"]
[null,null,null,null,null,null,null,null,null,null,null,null,null,null,null,null,null,null,null,null,null,null,"Newsprint (Chips)"]
[null,null,null,null,null,null,null,null,null,null,null,null,null,null,null,null,null,null,null,null,null,null,"Newsprint (Salvage)"]
[null,null,null,null,null,null,null,null,null,null,null,null,null,null,null,null,null,null,null,null,null,null,"Newsprint (Tamarack)"]
[null,null,null,null,null,null,null,null,null,null,null,null,null,null,null,null,null,null,null,null,null,null,"Newsprint - HW"]
[null,null,null,null,null,null,null,null,null,null,null,null,null,null,null,null,null,null,null,null,null,null,"Pallet Stock - SW"]
[null,null,null,null,null,null,null,null,null,null,null,null,null,null,null,null,null,null,null,null,null,null,"Pallet Stock - HW"]
[null,null,null,null,null,null,null,null,null,null,null,null,null,null,null,null,null,null,null,null,null,null,"Post & Rails"]
[null,null,null,null,null,null,null,null,null,null,null,null,null,null,null,null,null,null,null,null,null,null,"Post & Rails (Salvage)"]
[null,null,null,null,null,null,null,null,null,null,null,null,null,null,null,null,null,null,null,null,null,null,"Post & Rails (Tamarack)"]
[null,null,null,null,null,null,null,null,null,null,null,null,null,null,null,null,null,null,null,null,null,null,"Christmas Trees (pieces)"]
[null,null,null,null,null,null,null,null,null,null,null,null,null,null,null,null,null,null,null,null,null,null,"Other"]
[]
[]
[]
[]
[]
[]
[]
[null,null,null,null,null,null,null,null,"(SUB) TOTAL",{"$f":"SUM(J29:J59)","v":0}]
[]
[null,null,null,null,null,"My last declaration was submitted for the month of  "]
[]
["DECLARANT, I ",null,null,null,"OF"]
[null,null,null,null,"am conversant with the operation to which this return refers and declare the above is correct statement of all operations during the above month"]
[]
[]
[null,"WITNESS TO SIGNATURE",null,null,"SIGNATURE OF DECLARANT",null,null,"DATE"]
["REMARKS AND NOTES: ",null,null,"At year end check one of the following:"]
[]
[null,null,null,null,"\n"]
[]
["FORESTRY OFFICE USE ONLY",null,null," LATE FILING PENALTY:",null,null,"INTEREST CHARGE: "]
[null,null,null,null,null,null,null,null,"DATE PAID"]
[null,null,null,null,null,null,null,null,"AMOUNT PAID"]
[null,"RECEIVED BY",null,null,"DATE RECEIVED",null,null,null,"INTERIM RECEIPT NUMBER"]
["REVIEWED BY:",null,null,null,null,null,"DATE REVIEWED:"]

{"sheet":"Page 2","index":2,"n_rows":64,"n_cols":25,"rows_kept":64,"cut":false,"hidden":false,"merged":[[7,2,8,2],[59,0,59,1],[63,1,63,3],[63,4,63,5],[54,4,54,6],[55,4,55,6],[46,4,46,6],[35,4,35,6],[36,4,36,6],[37,4,37,6],[30,4,30,6],[31,4,31,6],[32,4,32,6],[33,4,33,6],[42,4,42,6],[43,4,43,6],[63,7,63,8],[56,4,56,6],[47,4,47,6],[44,4,44,6],[45,4,45,6],[51,4,51,6],[48,4,48,6],[49,4,49,6],[50,4,50,6],[52,4,52,6],[53,4,53,6],[40,4,40,6],[41,4,41,6],[39,4,39,6],[38,4,38,6],[7,0,8,0],[7,1,8,1],[7,3,8,3],[7,4,8,6],[10,4,10,6],[28,4,28,6],[23,4,23,6],[24,4,24,6],[25,4,25,6],[18,4,18,6],[19,4,19,6],[20,4,20,6],[21,4,21,6],[15,4,15,6],[13,4,13,6],[34,4,34,6],[0,4,0,6],[1,4,1,6],[2,4,2,6],[3,5,3,6],[12,4,12,6],[26,4,26,6],[27,4,27,6],[29,4,29,6],[22,4,22,6],[16,4,16,6],[17,4,17,6],[14,4,14,6],[1,9,2,9],[4,5,4,6],[1,8,2,8],[7,7,7,9],[11,4,11,6]]}
[null,null,null,null,"Timber Return  2022-23",null,null,null,"FMU:",{"$f":"Form!J1","v":0}]
[null,null,null,null,"MULTIPLE PAGE",null,null,null,"OP. PERMIT #:",{"$f":"Form!J2","v":0}]
[null,null,null,null,"All records on this page must summarized on page 1"]
[null,null,null,null,"FOR THE MONTH OF ",{"$f":"Form!F3","v":"00:00:00"},null,null,"TIMBER SALE #:",{"$f":"Form!J3","v":0}]
[null,null,null,null,"HELD IN THE NAME OF ",{"$f":"Form!F4","v":0},null,null,"QUOTA #:",{"$f":"Form!J4","v":0}]
[]
["SCALED TIMBER RECORDS",null,null,null,null,null,null,null,null,"(ALL RELATED STACKED WOOD TALLY SHEETS AND LOAD SLIPS MUST BE ATTACHED)"]
["DATE\n(yyyy-mm-dd)","SPECIES","BLOCK\nNUMBER","COMMODITY / PRODUCT","FINAL DESTINATION                                                                     Mill Name, Yard, etc. - Locations as per approved Scaling Plan",null,null,"SCALE"]
[null,null,null,null,null,null,null,"SCALER LIC. #","LOAD SLIP #","VOLUME (m3)"]
["DATE","SPECIES",null,"COMMODITY","DESTINATION","blank1","blank2","Scaler LIC","loadslip","VOLUME (m3)"]
[]
[]
[]
[]
[]
[]
[]
[]
[null,null,null,null,null,null,null,null,null,null,null,null,null,null,null,null,null,null,null,null,null,null,"Commodity List",null,"Dates "]
[null,null,null,null,null,null,null,null,null,null,null,null,null,null,null,null,null,null,null,null,null,null,"SW Lumber",null,"2010-01-01"]
[null,null,null,null,null,null,null,null,null,null,null,null,null,null,null,null,null,null,null,null,null,null,"SW Lumber (Salvage)",null,"2010-02-01"]
[null,null,null,null,null,null,null,null,null,null,null,null,null,null,null,null,null,null,null,null,null,null,"SW Lumber (Tamarack)",null,"2010-03-01"]
[null,null,null,null,null,null,null,null,null,null,null,null,null,null,null,null,null,null,null,null,null,null,"HW Lumber",null,"2010-04-01"]
[null,null,null,null,null,null,null,null,null,null,null,null,null,null,null,null,null,null,null,null,null,null,"HW Lumber (Salvage)",null,"2010-05-01"]
[null,null,null,null,null,null,null,null,null,null,null,null,null,null,null,null,null,null,null,null,null,null,"Fuelwood (Green) - HW",null,"2010-06-01"]
[null,null,null,null,null,null,null,null,null,null,null,null,null,null,null,null,null,null,null,null,null,null,"Fuelwood (Green) - SW",null,"2010-07-01"]
[null,null,null,null,null,null,null,null,null,null,null,null,null,null,null,null,null,null,null,null,null,null,"Fuelwood (Salvage)",null,"2010-08-01"]
[null,null,null,null,null,null,null,null,null,null,null,null,null,null,null,null,null,null,null,null,null,null,"Fuelwood (Tamarack)",null,"2010-09-01"]
[null,null,null,null,null,null,null,null,null,null,null,null,null,null,null,null,null,null,null,null,null,null,"OSB/Board",null,"2010-10-01"]
[null,null,null,null,null,null,null,null,null,null,null,null,null,null,null,null,null,null,null,null,null,null,"OSB/Board (Salvage)",null,"2010-11-01"]
[null,null,null,null,null,null,null,null,null,null,null,null,null,null,null,null,null,null,null,null,null,null,"OSB/Board -SW",null,"2010-12-01"]
[null,null,null,null,null,null,null,null,null,null,null,null,null,null,null,null,null,null,null,null,null,null,"OSB/Board -HW",null,"2011-01-01"]
[null,null,null,null,null,null,null,null,null,null,null,null,null,null,null,null,null,null,null,null,null,null,"OSB/Board (Tamarack)",null,"2011-02-01"]
[null,null,null,null,null,null,null,null,null,null,null,null,null,null,null,null,null,null,null,null,null,null,"Kraft (Roundwood)",null,"2011-03-01"]
[null,null,null,null,null,null,null,null,null,null,null,null,null,null,null,null,null,null,null,null,null,null,"Kraft (Chips)"]
[null,null,null,null,null,null,null,null,null,null,null,null,null,null,null,null,null,null,null,null,null,null,"Kraft (Salvage)"]
[null,null,null,null,null,null,null,null,null,null,null,null,null,null,null,null,null,null,null,null,null,null,"Kraft (Tamarack)"]
[null,null,null,null,null,null,null,null,null,null,null,null,null,null,null,null,null,null,null,null,null,null,"Kraft - HW"]
[null,null,null,null,null,null,null,null,null,null,null,null,null,null,null,null,null,null,null,null,null,null,"Bio-Product (Non-Merch)"]
[null,null,null,null,null,null,null,null,null,null,null,null,null,null,null,null,null,null,null,null,null,null,"Bio-Product (Merch) - SW "]
[null,null,null,null,null,null,null,null,null,null,null,null,null,null,null,null,null,null,null,null,null,null,"Bio-Product (Merch) - HW "]
[null,null,null,null,null,null,null,null,null,null,null,null,null,null,null,null,null,null,null,null,null,null,"Newsprint (Roundwood)"]
[null,null,null,null,null,null,null,null,null,null,null,null,null,null,null,null,null,null,null,null,null,null,"Newsprint (Chips)"]
[null,null,null,null,null,null,null,null,null,null,null,null,null,null,null,null,null,null,null,null,null,null,"Newsprint (Salvage)"]
[null,null,null,null,null,null,null,null,null,null,null,null,null,null,null,null,null,null,null,null,null,null,"Newsprint (Tamarack)"]
[null,null,null,null,null,null,null,null,null,null,null,null,null,null,null,null,null,null,null,null,null,null,"Newsprint - HW"]
[null,null,null,null,null,null,null,null,null,null,null,null,null,null,null,null,null,null,null,null,null,null,"Post & Rails"]
[null,null,null,null,null,null,null,null,null,null,null,null,null,null,null,null,null,null,null,null,null,null,"Post & Rails (Salvage)"]
[null,null,null,null,null,null,null,null,null,null,null,null,null,null,null,null,null,null,null,null,null,null,"Post & Rails (Tamarack)"]
[null,null,null,null,null,null,null,null,null,null,null,null,null,null,null,null,null,null,null,null,null,null,"Christmas Trees (pieces)"]
[null,null,null,null,null,null,null,null,null,null,null,null,null,null,null,null,null,null,null,null,null,null,"Other"]
[]
[]
[]
[]
[]
[]
[null,null,null,null,null,null,null,null,"(SUB) TOTAL",{"$f":"SUM(J11:J57)","v":0}]
[]
["DECLARANT, I ",null,null,null,"OF"]
[null,null,null,null,"am conversant with the operation to which this return refers and declare the above is a correct statement of all operations during the above month"]
[]
[]
[null,"WITNESS TO SIGNATURE",null,null,"SIGNATURE OF DECLARANT",null,null,"DATE"]

{"sheet":"Page 3","index":3,"n_rows":64,"n_cols":25,"rows_kept":64,"cut":false,"hidden":false,"merged":[[7,2,8,2],[59,0,59,1],[63,1,63,3],[63,4,63,5],[54,4,54,6],[55,4,55,6],[46,4,46,6],[35,4,35,6],[36,4,36,6],[37,4,37,6],[30,4,30,6],[31,4,31,6],[32,4,32,6],[33,4,33,6],[42,4,42,6],[43,4,43,6],[63,7,63,8],[56,4,56,6],[47,4,47,6],[44,4,44,6],[45,4,45,6],[51,4,51,6],[48,4,48,6],[49,4,49,6],[50,4,50,6],[52,4,52,6],[53,4,53,6],[40,4,40,6],[41,4,41,6],[39,4,39,6],[38,4,38,6],[7,0,8,0],[7,1,8,1],[7,3,8,3],[7,4,8,6],[10,4,10,6],[28,4,28,6],[23,4,23,6],[24,4,24,6],[25,4,25,6],[18,4,18,6],[19,4,19,6],[20,4,20,6],[21,4,21,6],[15,4,15,6],[13,4,13,6],[34,4,34,6],[0,4,0,6],[1,4,1,6],[2,4,2,6],[3,5,3,6],[12,4,12,6],[26,4,26,6],[27,4,27,6],[29,4,29,6],[22,4,22,6],[16,4,16,6],[17,4,17,6],[14,4,14,6],[1,9,2,9],[4,5,4,6],[1,8,2,8],[7,7,7,9],[11,4,11,6]]}
[null,null,null,null,"Timber Return  2022-23",null,null,null,"FMU:",{"$f":"Form!J1","v":0}]
[null,null,null,null,"MULTIPLE PAGE",null,null,null,"OP. PERMIT #:",{"$f":"Form!J2","v":0}]
[null,null,null,null,"All records on this page must summarized on page 1"]
[null,null,null,null,"FOR THE MONTH OF ",{"$f":"Form!F3","v":"00:00:00"},null,null,"TIMBER SALE #:",{"$f":"Form!J3","v":0}]
[null,null,null,null,"HELD IN THE NAME OF ",{"$f":"Form!F4","v":0},null,null,"QUOTA #:",{"$f":"Form!J4","v":0}]
[]
["SCALED TIMBER RECORDS",null,null,null,null,null,null,null,null,"(ALL RELATED STACKED WOOD TALLY SHEETS AND LOAD SLIPS MUST BE ATTACHED)"]
["DATE\n(yyyy-mm-dd)","SPECIES","BLOCK\nNUMBER","COMMODITY / PRODUCT","FINAL DESTINATION                                                                     Mill Name, Yard, etc. - Locations as per approved Scaling Plan",null,null,"SCALE"]
[null,null,null,null,null,null,null,"SCALER LIC. #","LOAD SLIP #","VOLUME (m3)"]
["DATE","SPECIES",null,null,null,null,null,null,"loadslip","VOLUME (m3)"]
[]
[]
[]
[]
[]
[]
[]
[]
[null,null,null,null,null,null,null,null,null,null,null,null,null,null,null,null,null,null,null,null,null,null,"Commodity List",null,"Dates "]
[null,null,null,null,null,null,null,null,null,null,null,null,null,null,null,null,null,null,null,null,null,null,"SW Lumber",null,"2010-01-01"]
[null,null,null,null,null,null,null,null,null,null,null,null,null,null,null,null,null,null,null,null,null,null,"SW Lumber (Salvage)",null,"2010-02-01"]
[null,null,null,null,null,null,null,null,null,null,null,null,null,null,null,null,null,null,null,null,null,null,"SW Lumber (Tamarack)",null,"2010-03-01"]
[null,null,null,null,null,null,null,null,null,null,null,null,null,null,null,null,null,null,null,null,null,null,"HW Lumber",null,"2010-04-01"]
[null,null,null,null,null,null,null,null,null,null,null,null,null,null,null,null,null,null,null,null,null,null,"HW Lumber (Salvage)",null,"2010-05-01"]
[null,null,null,null,null,null,null,null,null,null,null,null,null,null,null,null,null,null,null,null,null,null,"Fuelwood (Green) - HW",null,"2010-06-01"]
[null,null,null,null,null,null,null,null,null,null,null,null,null,null,null,null,null,null,null,null,null,null,"Fuelwood (Green) - SW",null,"2010-07-01"]
[null,null,null,null,null,null,null,null,null,null,null,null,null,null,null,null,null,null,null,null,null,null,"Fuelwood (Salvage)",null,"2010-08-01"]
[null,null,null,null,null,null,null,null,null,null,null,null,null,null,null,null,null,null,null,null,null,null,"Fuelwood (Tamarack)",null,"2010-09-01"]
[null,null,null,null,null,null,null,null,null,null,null,null,null,null,null,null,null,null,null,null,null,null,"OSB/Board",null,"2010-10-01"]
[null,null,null,null,null,null,null,null,null,null,null,null,null,null,null,null,null,null,null,null,null,null,"OSB/Board (Salvage)",null,"2010-11-01"]
[null,null,null,null,null,null,null,null,null,null,null,null,null,null,null,null,null,null,null,null,null,null,"OSB/Board -SW",null,"2010-12-01"]
[null,null,null,null,null,null,null,null,null,null,null,null,null,null,null,null,null,null,null,null,null,null,"OSB/Board -HW",null,"2011-01-01"]
[null,null,null,null,null,null,null,null,null,null,null,null,null,null,null,null,null,null,null,null,null,null,"OSB/Board (Tamarack)",null,"2011-02-01"]
[null,null,null,null,null,null,null,null,null,null,null,null,null,null,null,null,null,null,null,null,null,null,"Kraft (Roundwood)",null,"2011-03-01"]
[null,null,null,null,null,null,null,null,null,null,null,null,null,null,null,null,null,null,null,null,null,null,"Kraft (Chips)"]
[null,null,null,null,null,null,null,null,null,null,null,null,null,null,null,null,null,null,null,null,null,null,"Kraft (Salvage)"]
[null,null,null,null,null,null,null,null,null,null,null,null,null,null,null,null,null,null,null,null,null,null,"Kraft (Tamarack)"]
[null,null,null,null,null,null,null,null,null,null,null,null,null,null,null,null,null,null,null,null,null,null,"Kraft - HW"]
[null,null,null,null,null,null,null,null,null,null,null,null,null,null,null,null,null,null,null,null,null,null,"Bio-Product (Non-Merch)"]
[null,null,null,null,null,null,null,null,null,null,null,null,null,null,null,null,null,null,null,null,null,null,"Bio-Product (Merch) - SW "]
[null,null,null,null,null,null,null,null,null,null,null,null,null,null,null,null,null,null,null,null,null,null,"Bio-Product (Merch) - HW "]
[null,null,null,null,null,null,null,null,null,null,null,null,null,null,null,null,null,null,null,null,null,null,"Newsprint (Roundwood)"]
[null,null,null,null,null,null,null,null,null,null,null,null,null,null,null,null,null,null,null,null,null,null,"Newsprint (Chips)"]
[null,null,null,null,null,null,null,null,null,null,null,null,null,null,null,null,null,null,null,null,null,null,"Newsprint (Salvage)"]
[null,null,null,null,null,null,null,null,null,null,null,null,null,null,null,null,null,null,null,null,null,null,"Newsprint (Tamarack)"]
[null,null,null,null,null,null,null,null,null,null,null,null,null,null,null,null,null,null,null,null,null,null,"Newsprint - HW"]
[null,null,null,null,null,null,null,null,null,null,null,null,null,null,null,null,null,null,null,null,null,null,"Post & Rails"]
[null,null,null,null,null,null,null,null,null,null,null,null,null,null,null,null,null,null,null,null,null,null,"Post & Rails (Salvage)"]
[null,null,null,null,null,null,null,null,null,null,null,null,null,null,null,null,null,null,null,null,null,null,"Post & Rails (Tamarack)"]
[null,null,null,null,null,null,null,null,null,null,null,null,null,null,null,null,null,null,null,null,null,null,"Christmas Trees (pieces)"]
[null,null,null,null,null,null,null,null,null,null,null,null,null,null,null,null,null,null,null,null,null,null,"Other"]
[]
[]
[]
[]
[]
[]
[null,null,null,null,null,null,null,null,"(SUB) TOTAL",{"$f":"SUM(J11:J57)","v":0}]
[]
["DECLARANT, I ",null,null,null,"OF"]
[null,null,null,null,"am conversant with the operation to which this return refers and declare the above is a correct statement of all operations during the above month"]
[]
[]
[null,"WITNESS TO SIGNATURE",null,null,"SIGNATURE OF DECLARANT",null,null,"DATE"]

{"sheet":"Instructions","index":4,"n_rows":208,"n_cols":4,"rows_kept":208,"cut":false,"hidden":false,"merged":[[131,0,131,3],[128,0,128,3],[137,0,137,3],[109,3,112,3],[2,0,2,3],[4,0,4,3],[43,0,43,3],[10,0,10,3],[23,0,23,3],[25,0,25,3],[31,0,31,3],[46,0,46,3],[47,0,47,3],[39,0,39,3],[7,0,7,3],[28,0,28,3],[12,0,12,3],[20,0,20,3],[36,0,36,3],[34,0,34,3],[134,0,134,3],[48,0,48,3],[64,0,64,3],[66,1,69,1],[92,0,92,3],[95,0,95,3],[75,0,75,3],[66,2,69,2],[89,0,89,3],[66,0,69,0],[51,0,51,3],[53,0,53,3],[109,0,112,0],[109,1,112,1],[109,2,112,2],[61,0,61,3],[98,0,98,3],[101,0,101,3],[104,0,104,3],[66,3,69,3],[115,0,115,3],[107,0,107,3],[204,0,204,3],[184,0,184,3],[187,0,187,3],[190,0,190,3],[193,0,193,3],[198,0,198,3],[201,0,201,3],[181,0,181,3],[160,0,160,3],[143,0,143,3],[140,0,140,3],[150,0,150,3],[174,0,174,3],[176,0,176,1],[147,0,147,3],[153,0,153,3],[156,0,156,3],[145,0,145,3],[177,0,177,1],[178,0,178,1],[163,0,163,3],[164,0,164,3],[166,0,166,1],[167,0,167,1],[175,3,175,4],[168,0,168,1],[173,0,173,3],[171,0,171,3]]}
["Manitoba’s Monthly Timber Returns"]
[]
["All timber delivered to a destination other than an FML and/or an EDT Mill must be reported and paid for by the Cutting Right holder (Quota holders or Timber Sale holders).  "]
[]
["All timber that meets the above definition must be reported on the monthly timber return. The return only needs to be completed for months when Crown timber is moved or delivered. The return must be submitted by the end of the month following the month in which the timber was moved."]
[]
["PROCESS FOR SUBMISSION"]
["The return must be submitted on or before the last day of the month following the month in which timber was scaled or moved.  For example, a timber return must be submitted by the last business day of May for all Crown timber scaled or moved during the month of April. If no Crown timber is moved during a month then no return is required. "]
[]
["Final Return"]
["A Final Return is required when operations are completed for the operating year or to declare you have not operated that year. A Final return must be submitted by April 30th. In the box on the lower right of the form, please check the applicable response.  In the Remarks section include an estimate of on hand wood by species and location, use back of page if required. Return must be signed as usual."]
[]
["The timber return must be submitted to designated regional or district Forestry offices. It will be received by Forestry staff if all supporting documentation is attached. "]
[]
["Timber returns will be considered received when"]
["   A completed, signed hard-copy of the return is submitted with "]
["All related load slips attached (White copies)"]
["If timber was stacked scaled - All related stacked wood tally sheets attached"]
["If timber was mass scaled - All weigh scale tickets from the destination mill."]
[]
["If complete, the return must be date stamped received. The Timber Sale holder should keep a copy of the timber return for their records."]
[]
["Electronic Version and E-mail"]
["The return can be electronically completed using the MS Excel version. This version can then be submitted by e-mail. The electronic copy is to be emailed to the Regional Office and the Timber Sales and Revenue Clerk, Forestry Branch, Winnipeg. Email addresses will be provided upon request."]
[]
["If an electronic copy is submitted the original signed hard copy must be received, accompanied with all load slips, weigh scale tickets and tally sheets within five business days of the electronic copy.  The date to be entered on the ‘date received’ line of the return is the date the electronic copy was received, if all supporting documentation is received within five business days. If all required hard copy documents aren’t received in this time frame then the date the electronic copy was e-mailed will be disregarded. "]
[]
["Late Filing Penalties "]
["Late filing penalties will be assessed for returns not received by the last day of the month in which it is due. The late filing penalty is the greater of $50 or 1% of the dues and charges payable on account of timber scaled in the month in question, for each month or part of a month that the return is outstanding. "]
[]
["PAYMENT "]
["Payment of all Dues, Forest Renewal Charge (FRC) and Fire Protection Charge (FPC) declared on a return must be made to the Crown (Minister of Finance), by the end of the month following the month the timber return was due. For example payment is required on the last business day of June for a return due in May for all Crown timber scaled or moved during April. "]
[]
["Late Payment Penalties and Interest"]
["The penalty for late payment is the greater of $50 or 1% of the total amount owing for each month or part of a month the dues and charges remain owing and unpaid. \nInterest will also be payable on any unpaid dues or charges."]
["Errors in Timber Returns "]
["If an error is discovered in a monthly timber return that results in a failure to pay all dues or charges that were properly payable, then the outstanding dues and charges plus interest must be paid immediately. "]
[]
["FAILURE TO DECLARE"]
["Failure to report all timber that should be included in a monthly timber return will result in a penalty on the timber that was not reported in the return of four (4) times the dues and charges  that would ordinarily be payable.     "]
[]
["Instructions for Completing Monthly Timber Return Forms "]
[]
["The following are detailed instructions for completing the Timber Return form. For further information contact your local Forestry office."]
[]
["HEADING (TOP SECTION)"]
["Fill in FMU, Operating Permit number, Timber Sale number and Quota number (only one Timber Sale and one Operating Permit number per Timber Return)"]
["Fill in For the Month of … (one timber return per month). If using the electronic version choose a month from the drop down menu."]
["Fill in Held in the name of … with the Cutting Right holder’s name (Timber Sale or Quota holder). "]
[]
["SCALED TIMBER RECORDS SECTION"]
["This section must be completed for all Crown timber moved during the month. Each load or stack must be scaled by a licenced scaler and supported with all related load slips and stacked wood tally sheets completed.  "]
[]
["There are two ways this section can be completed depending on where and how the Crown timber is scaled:"]
[]
["1.     Scaled on a truck. "]
["2.    Scaled in a stack at its final destination."]
[]
["For Crown Timber Scaled on a Truck"]
[]
["Date"]
["Fill in the date (month and day) for each load scaled. List the entries starting at the top with the earliest date and move down."]
[]
["Species"]
["Indicate the species or species mix (using the species examples below) for each load scaled. If using the electronic version pick the appropriate choice from the drop-down menu. "]
[]
["White Spruce \nBlack Spruce \nSPRUCE-ALL \nCONIFER-ALL","Jack Pine \nRed Pine \nBalsam Fir \nTamarack ","Trembling Aspen \nBalsam Poplar \nWhite Birch \nPOPLAR-All","Oak\nAsh\nOTHER"]
[]
[]
[]
[]
["Block Number "]
["For each load scaled indicate the harvest block number. "]
[]
["Commodity"]
["For each load scaled indicate the commodity/forest product that it will be manufactured into, using the commodity/forest product examples below, including salvage. If using the electronic version pick the appropriate choice from the drop-down menu. Note: SW is softwood, HW is Hardwood.  "]
[]
["SW Lumber","Kraft (Roundwood)","Fuelwood (Green)"]
["SW Lumber (Salvage)","Kraft (Chips)","Fuelwood (Salvage)"]
["SW Lumber (Tamarack)","Kraft (Salvage)","Fuelwood (Tamarack)"]
["HW Lumber","Kraft (Tamarack)","Pallet Stock - SW"]
["HW Lumber (Salvage)","Newsprint (Roundwood)","Pallet Stock - HW"]
["OSB/Board","Newsprint (Chips)","Post & Rails"]
["OSB/Board (Salvage)","Newsprint (Salvage)","Post & Rails (Salvage)"]
["OSB/Board (Tamarack)","Newsprint (Tamarack)","Post & Rails (Tamarack)"]
["Christmas Trees (pieces)","Other"]
[]
[]
["Final Destination"]
["Indicate the final destination for each load scaled. This must include mill name, and/or town and must match the approved destinations listed on the scaling plan for the Timber Sale."]
[]
["Scaler’s Licence Number "]
["Indicate the Scaler’s Licence number for the person who scaled each load. This must match the stacked wood tally sheet."]
[]
["Load Slip Number"]
["Indicate the Manitoba load slip number for each load. This must match the attached load slip."]
[]
["Volume "]
["Transfer the net solid volume in cubic metres (m3) from the stacked wood tally sheet for each load. It should be recorded to two decimal places."]
[]
["For Crown Timber Scaled in a Stack at its Final Destination"]
["Stacks should scaled on a regular basis. Stacks should be clearly identified and separated to ensure future month’s deliveries are not mixed. Prior to each month end all stacks must be scaled for Crown dues payment. "]
[]
["Date"]
["Fill in the date (month and day) for each stack scaled. List the entries starting at the top with the earliest date and move down."]
[]
["Species"]
["Indicate the species or species mix (using the species examples below) for each stack scaled. If using the electronic version pick the appropriate choice from the drop-down menu. "]
[]
["White Spruce \nBlack Spruce \nSPRUCE-ALL \nCONIFER-ALL","Jack Pine \nRed Pine \nBalsam Fir \nTamarack ","Trembling Aspen \nBalsam Poplar \nWhite Birch \nPOPLAR-All","Oak\nAsh\nOTHER"]
[]
[]
[]
[]
["Commodity"]
["For each stack scaled indicate the commodity/forest product that it will be manufactured into, using the commodity/forest product examples below, including salvage. If using the electronic version pick the appropriate choice from the drop-down menu. Note: SW is softwood, HW is Hardwood.  "]
[]
["SW Lumber","Kraft (Roundwood)","Fuelwood (Green)"]
["SW Lumber (Salvage)","Kraft (Chips)","Fuelwood (Salvage)"]
["SW Lumber (Tamarack)","Kraft (Salvage)","Fuelwood (Tamarack)"]
["HW Lumber","Kraft (Tamarack)","Pallet Stock - SW"]
["HW Lumber (Salvage)","Newsprint (Roundwood)","Pallet Stock - HW"]
["OSB/Board","Newsprint (Chips)","Post & Rails"]
["OSB/Board (Salvage)","Newsprint (Salvage)","Post & Rails (Salvage)"]
["OSB/Board (Tamarack)","Newsprint (Tamarack)","Post & Rails (Tamarack)"]
["Christmas Trees (pieces)","Other"]
[]
["Final Destination"]
["Indicate the final destination for each stack scaled. This must include mill name, and/or town and must match the approved destinations listed on the scaling plan for the Timber Sale."]
[]
["Scaler’s Licence Number "]
["Indicate the Scaler’s Licence number for the person who scaled each stack. This must match the stacked wood tally sheet."]
[]
["Load Slip Number"]
["Indicate the stack number for each stack scaled. This must match the stacks listed on the attached stacked wood tally sheet."]
[]
["Volume "]
["Transfer the net solid volume in cubic metres (m3) from the stacked wood tally sheet for each stack. It should be recorded to two decimal places."]
[]
["SUMMARY OF DUES AND CHARGES"]
["This section is a summary of the Scaled Timber Records and is used for dues and charges calculation."]
[]
["Commodity/Product or Description"]
["For each different Commodity/Product/Block Number listed below in the Scaled Timber Records Section there should be one entry. Be sure to precisely identify the commodity because dues and charges rates may be different. Example: SW Lumber vs. SW Lumber (Salvage). If Tamarack is being reported choose the commodity that contains (Tamarack). Example SW Lumber (Tamarack)."]
[]
["Penalty charges and piece products (Christmas trees) may be entered under commodity. "]
[]
["If using the electronic version press the Summarize button below this section and all commodities, volumes and block numbers will be summarized for all sheets."]
[]
["Block Number"]
["Summarize the volumes by Commodity/Product and Block Number. If using the electronic version press the Summarize button below this section and all commodities, volumes and block numbers will be summarized. "]
[]
["Volume m3"]
["Summarize the volumes by Commodity/Product. If using the electronic version press the Summarize button below this section and all commodities and volumes will be summarized. Ensure the sub-total volume from the Stacked Timber Records sections equals the sub-total in the Summary of Dues and Charges section."]
[]
["Dues - Rate "]
["Enter the Crown Timber Dues rate for the commodity/product for the month.  If you are declaring timber for an auction sale or salvage enter the approved rate.\nMonthly Crown timber dues rates are found at: "]
["https://gov.mb.ca/forest/forestry/crown_timber/history/index.html "]
[]
["Dues - Total Dues"]
["The total dues for each commodity/product must be calculated by multiplying the summarized volume (m3) by the rate for the commodity/product for the month. If using the electronic version Total Dues will calculate automatically after the rate is entered."]
[]
["Fire Protection Charge (FPC) - Rate"]
["Enter the Fire Protection Charge, $0.17/ m3.  If you are using the electronic version select the appropriate rate from the drop down list. If you are declaring timber for an auction sale or salvage enter the approved rate. "]
["Salvage FPC Rates as of April 1, 2017:"]
[]
["25% reduction in FPC charges",null,"$0.13/m3"]
["50% reduction in FPC charges",null,"$0.09/m3"]
["75% reduction in FPC charges",null,"$0.04/m3"]
[]
["Fire Protection Charge (FPC) - Total FPC"]
["The Total FPC for each commodity/product must be calculated by multiplying the summarized volume (m3) by the FPC rate. If using the electronic version Total FPC will calculate automatically after the rate is entered."]
["Forest Renewal Charges (FRC) – Rate "]
["Enter the FRC rate for the commodity/product.  If you are using the electronic version select the appropriate rate from the drop down list. If you are declaring timber for an auction sale or salvage enter the approved rate. The rates as of April 1, 2017 are $5.75/m3 for softwood and $0.50/m3 for hardwood & tamarack."]
["Salvage FRC Rates as of April 1, 2017:"]
[null,null,"Softwood","Hardwood and Tamarack"]
["25% reduction in FRC charges",null,"$4.31/m3","$0.38/m3"]
["50% reduction in FRC charges",null,"$2.88/m3","$0.25/m3"]
["75% reduction in FRC charges",null,"$1.44/m3","$0.13/m3"]
[]
["Forest Renewal Charges (FRC) - Total FRC "]
["The Total FRC for each commodity/product must be calculated by multiplying the summarized volume (m3) by the FRC rate for the commodity/product. If using the electronic version Total FRC will calculate automatically after the rate is entered."]
[]
["Total Amount"]
["This is the total dues and charges for each commodity. For each line add Total Dues, Total FRC and Total FPC to determine the total amount per commodity/product. If using the electronic version the Total Amount will calculate automatically."]
[]
["Subtotal of Dues and Charges"]
["This is the total dues and charges for the Return. Add all entries in the Total Amount column. If using the electronic version the Subtotal will calculate automatically."]
[]
["G.S.T. Payable"]
["If the Timber Sale holder does not have a G.S.T. number the G.S.T. must be applied. Multiply the Subtotal of dues and charges by the G.S.T. rate (5%).  Note: If using the electronic version the G.S.T. will automatically be calculated and applied if a G.S.T. business number is not entered."]
[]
["Total Payable"]
["This is the total amount due for this Return. Add the subtotal of dues and charges to the G.S.T. payable to determine the Total Payable. If using the electronic version the Total Payable will calculate automatically."]
[]
["SIGNATURE AND REMARKS - Complete this section on all pages used"]
[]
["Page numbers"]
["Ensure to enter the page number(s).  If using the electronic version the page numbers will update automatically. If this section indicates more pages than you have used, check for entries on the other pages (Worksheet Page 2, and/or Page 3)."]
[]
["Declarant"]
["After DECLARANT, I print name of the cutting right holder and after OF print the name of community where the cutting right holder resides."]
[]
["Witness to Signature, Signature of Declarant, Date"]
["It is preferable that the cutting right holder signs the Return in a Forestry Office and that a Foresrty staff witnesses it. However, the Return can be signed, witnessed and dated prior to being submitted."]
[]
["Remarks and Notes "]
["Remarks or Notes can be entered to add clarity to some details of the return."]

{"sheet":"Data","index":5,"n_rows":0,"n_cols":0,"rows_kept":0,"cut":false,"hidden":true,"merged":[]}

{"sheet":"ESRI_MAPINFO_SHEET","index":6,"n_rows":0,"n_cols":0,"rows_kept":0,"cut":false,"hidden":true,"merged":[]}